[Event "Titled Tuesday Blitz July 05 Late 2022"]
[White "Plazuelo Pascual, Juan"]
[Black "Storme, Isak"]
[WhiteFideId "32059566"]
[BlackFideId "1728113"]
[WhiteElo "2416"]
[BlackElo "2205"]
[Result "0-1"]
[Round "04"]
[TimeControl "180+1"]
[Date "2022.07.06"]
[WhiteClock "0:00:36"]
[BlackClock "0:00:05"]

1. e4 {[%clk 0:03:00]}  c6 {[%clk 0:02:57]} 2. d4 {[%clk 0:03:00]}  d5 {[%clk 0:02:58]} 3. exd5 {[%clk 0:03:00]}  cxd5 {[%clk 0:02:59]} 4. Bd3 {[%clk 0:03:01]}  Nc6 {[%clk 0:02:58]} 5. c3 {[%clk 0:03:01]}  Nf6 {[%clk 0:02:58]} 6. Bf4 {[%clk 0:03:01]}  Bg4 {[%clk 0:02:57]} 7. Qb3 {[%clk 0:03:01]}  e5 {[%clk 0:02:56]} 8. dxe5 {[%clk 0:02:53]}  Nh5 {[%clk 0:02:56]} 9. Be3 {[%clk 0:02:47]}  Nxe5 {[%clk 0:02:55]} 10. Bb5+ {[%clk 0:02:46]}  Nc6 {[%clk 0:02:45]} 11. h3 {[%clk 0:02:45]}  Be6 {[%clk 0:02:42]} 12. Qa4 {[%clk 0:02:45]}  Bd6 {[%clk 0:02:18]} 13. Bxc6+ {[%clk 0:02:37]}  bxc6 {[%clk 0:02:18]} 14. Qxc6+ {[%clk 0:02:38]}  Kf8 {[%clk 0:02:18]} 15. Bc5 {[%clk 0:02:36]}  Bxc5 {[%clk 0:02:11]} 16. Qxc5+ {[%clk 0:02:37]}  Kg8 {[%clk 0:02:11]} 17. Ne2 {[%clk 0:02:34]}  Rc8 {[%clk 0:02:10]} 18. Qxa7 {[%clk 0:02:27]}  Qg5 {[%clk 0:02:07]} 19. g3 {[%clk 0:02:19]}  Re8 {[%clk 0:02:03]} 20. Qe3 {[%clk 0:02:05]}  Qg6 {[%clk 0:01:48]} 21. Nd2 {[%clk 0:01:59]}  Bd7 {[%clk 0:01:48]} 22. Qf3 {[%clk 0:01:56]}  Bb5 {[%clk 0:01:47]} 23. c4 {[%clk 0:01:55]}  dxc4 {[%clk 0:01:41]} 24. O-O-O {[%clk 0:01:43]}  Ba4 {[%clk 0:01:13]} 25. b3 {[%clk 0:01:39]}  cxb3 {[%clk 0:01:00]} 26. axb3 {[%clk 0:01:40]}  Bc6 {[%clk 0:00:57]} 27. Qg4 {[%clk 0:01:18]}  Bxh1 {[%clk 0:00:55]} 28. Nc3 {[%clk 0:00:57]}  Bc6 {[%clk 0:00:51]} 29. b4 {[%clk 0:00:55]}  Nf6 {[%clk 0:00:42]} 30. Qc4 {[%clk 0:00:52]}  Bd7 {[%clk 0:00:36]} 31. b5 {[%clk 0:00:52]}  Rc8 {[%clk 0:00:35]} 32. Qd4 {[%clk 0:00:52]}  Bxb5 {[%clk 0:00:30]} 33. Kb2 {[%clk 0:00:51]}  Be8 {[%clk 0:00:30]} 34. Nc4 {[%clk 0:00:50]}  h6 {[%clk 0:00:29]} 35. Ne5 {[%clk 0:00:49]}  Qf5 {[%clk 0:00:29]} 36. f4 {[%clk 0:00:50]}  Kh7 {[%clk 0:00:28]} 37. g4 {[%clk 0:00:50]}  Rb8+ {[%clk 0:00:27]} 38. Kc1 {[%clk 0:00:49]}  Qe6 {[%clk 0:00:25]} 39. Qd3+ {[%clk 0:00:47]}  g6 {[%clk 0:00:25]} 40. Re1 {[%clk 0:00:45]}  Qb3 {[%clk 0:00:25]} 41. Kd2 {[%clk 0:00:45]}  Bb5 {[%clk 0:00:20]} 42. Nxb5 {[%clk 0:00:44]}  Qxd3+ {[%clk 0:00:20]} 43. Kxd3 {[%clk 0:00:45]}  Rxb5 {[%clk 0:00:20]} 44. Nxf7 {[%clk 0:00:46]}  Rf8 {[%clk 0:00:19]} 45. Re7 {[%clk 0:00:43]}  Nd5 {[%clk 0:00:16]} 46. Ra7 {[%clk 0:00:43]}  Kg7 {[%clk 0:00:07]} 47. Nd6+ {[%clk 0:00:42]}  Kf6 {[%clk 0:00:08]} 48. Nxb5 {[%clk 0:00:41]}  Nxf4+ {[%clk 0:00:08]} 49. Ke4 {[%clk 0:00:41]}  Nxh3 {[%clk 0:00:08]} 50. Nd6 {[%clk 0:00:36]}  Ng5+ {[%clk 0:00:09]} 51. Ke3 {[%clk 0:00:36]}  Rd8 {[%clk 0:00:08]} 52. Ra6 {[%clk 0:00:34]}  Ne6 {[%clk 0:00:05]} 53. Ne4+ {[%clk 0:00:34]}  Ke7 {[%clk 0:00:04]} 54. Ra7+ {[%clk 0:00:34]}  Rd7 {[%clk 0:00:04]} 55. Ra1 {[%clk 0:00:35]}  Rb7 {[%clk 0:00:03]} 56. Rh1 {[%clk 0:00:35]}  Rb3+ {[%clk 0:00:04]} 57. Ke2 {[%clk 0:00:35]}  Nf4+ {[%clk 0:00:04]} 58. Kd2 {[%clk 0:00:35]}  h5 {[%clk 0:00:04]} 59. gxh5 {[%clk 0:00:35]}  gxh5 {[%clk 0:00:05]} 60. Rxh5 {[%clk 0:00:35]}  Nxh5 {[%clk 0:00:04]} 61. Nc5 {[%clk 0:00:36]}  Rh3 {[%clk 0:00:05]} 62. Ne4 {[%clk 0:00:36]}  Nf4 {[%clk 0:00:05]} 63. Ng5 {[%clk 0:00:35]}  Rd3+ {[%clk 0:00:04]} 64. Kc2 {[%clk 0:00:35]}  Rd5 {[%clk 0:00:05]} 65. Ne4 {[%clk 0:00:36]}  Ne6 {[%clk 0:00:05]} 66. Nc3 {[%clk 0:00:35]}  Rc5 {[%clk 0:00:05]} 67. Kb3 {[%clk 0:00:36]}  Nd4+ {[%clk 0:00:05]} 68. Kb4 {[%clk 0:00:36]}  Rc8 {[%clk 0:00:05]} 69. Nd5+ {[%clk 0:00:37]}  Kd6 {[%clk 0:00:06]} 70. Ne3 {[%clk 0:00:36]}  Nc2+ {[%clk 0:00:05]} 0-1


[Site "https://www.chess.com"]

[Event "Titled Tuesday Blitz July 05 Late 2022"]
[White "Przybylski, Wojciech"]
[Black "Kosteniuk, Alexandra"]
[WhiteFideId "1117599"]
[BlackFideId "4128125"]
[WhiteElo "2133"]
[BlackElo "2469"]
[Result "1-0"]
[Round "04"]
[TimeControl "180+1"]
[Date "2022.07.05"]
[WhiteClock "0:00:02"]
[BlackClock "0:00:09"]

1. d4 {[%clk 0:03:00]}  f5 {[%clk 0:02:59]} 2. Nf3 {[%clk 0:03:00]}  Nf6 {[%clk 0:02:59]} 3. g3 {[%clk 0:03:00]}  g6 {[%clk 0:02:59]} 4. Bg2 {[%clk 0:03:00]}  Bg7 {[%clk 0:03:00]} 5. O-O {[%clk 0:03:00]}  O-O {[%clk 0:03:00]} 6. Re1 {[%clk 0:02:59]}  d6 {[%clk 0:02:57]} 7. c3 {[%clk 0:02:58]}  h6 {[%clk 0:02:52]} 8. Nbd2 {[%clk 0:02:58]}  g5 {[%clk 0:02:50]} 9. e4 {[%clk 0:02:55]}  fxe4 {[%clk 0:02:39]} 10. Nxe4 {[%clk 0:02:55]}  Nxe4 {[%clk 0:02:37]} 11. Rxe4 {[%clk 0:02:54]}  Nd7 {[%clk 0:02:29]} 12. Qb3+ {[%clk 0:02:51]}  Kh8 {[%clk 0:02:26]} 13. Bxg5 {[%clk 0:02:44]}  Nf6 {[%clk 0:02:15]} 14. Rh4 {[%clk 0:02:39]}  Ng8 {[%clk 0:02:11]} 15. Re1 {[%clk 0:02:34]}  Qe8 {[%clk 0:02:03]} 16. Qc2 {[%clk 0:02:25]}  Bf5 {[%clk 0:02:01]} 17. Qd2 {[%clk 0:02:25]}  Qg6 {[%clk 0:02:01]} 18. Be3 {[%clk 0:02:14]}  Rae8 {[%clk 0:01:43]} 19. Rf4 {[%clk 0:02:13]}  Bc2 {[%clk 0:01:27]} 20. Nh4 {[%clk 0:02:11]}  Qd3 {[%clk 0:01:27]} 21. Qxd3 {[%clk 0:02:09]}  Bxd3 {[%clk 0:01:27]} 22. Rxf8 {[%clk 0:02:06]}  Rxf8 {[%clk 0:01:27]} 23. b3 {[%clk 0:01:46]}  c6 {[%clk 0:01:26]} 24. Bf4 {[%clk 0:01:37]}  Bf6 {[%clk 0:01:20]} 25. Rd1 {[%clk 0:01:34]}  Bh7 {[%clk 0:01:19]} 26. Be3 {[%clk 0:01:30]}  Bxh4 {[%clk 0:01:16]} 27. gxh4 {[%clk 0:01:30]}  a5 {[%clk 0:01:13]} 28. Re1 {[%clk 0:01:13]}  Kg7 {[%clk 0:01:11]} 29. d5 {[%clk 0:01:09]}  c5 {[%clk 0:01:11]} 30. c4 {[%clk 0:01:04]}  b6 {[%clk 0:01:04]} 31. Bd2 {[%clk 0:01:03]}  Bf5 {[%clk 0:00:56]} 32. Re3 {[%clk 0:01:02]}  Re8 {[%clk 0:00:38]} 33. Rf3 {[%clk 0:00:57]}  Bb1 {[%clk 0:00:38]} 34. Rg3+ {[%clk 0:00:55]}  Kh7 {[%clk 0:00:38]} 35. Bc3 {[%clk 0:00:51]}  Nf6 {[%clk 0:00:37]} 36. Re3 {[%clk 0:00:51]}  Kg7 {[%clk 0:00:33]} 37. Rg3+ {[%clk 0:00:50]}  Kh7 {[%clk 0:00:33]} 38. Re3 {[%clk 0:00:50]}  Kg7 {[%clk 0:00:34]} 39. Re2 {[%clk 0:00:47]}  Kf7 {[%clk 0:00:31]} 40. Bf3 {[%clk 0:00:46]}  Rg8+ {[%clk 0:00:31]} 41. Kh1 {[%clk 0:00:44]}  Bd3 {[%clk 0:00:27]} 42. Re3 {[%clk 0:00:42]}  Bf5 {[%clk 0:00:27]} 43. Bg2 {[%clk 0:00:16]}  Ng4 {[%clk 0:00:22]} 44. Rf3 {[%clk 0:00:16]}  Kg6 {[%clk 0:00:23]} 45. h3 {[%clk 0:00:14]}  Nf6 {[%clk 0:00:17]} 46. Rg3+ {[%clk 0:00:14]}  Kf7 {[%clk 0:00:18]} 47. Bf3 {[%clk 0:00:09]}  Ra8 {[%clk 0:00:14]} 48. Bd1 {[%clk 0:00:07]}  Bb1 {[%clk 0:00:14]} 49. a4 {[%clk 0:00:07]}  Be4+ {[%clk 0:00:14]} 50. f3 {[%clk 0:00:06]}  Bf5 {[%clk 0:00:14]} 51. Kg2 {[%clk 0:00:07]}  Nh5 {[%clk 0:00:13]} 52. Rg4 {[%clk 0:00:04]}  Bxg4 {[%clk 0:00:13]} 53. hxg4 {[%clk 0:00:04]}  Nf4+ {[%clk 0:00:14]} 54. Kf2 {[%clk 0:00:04]}  Ng6 {[%clk 0:00:14]} 55. h5 {[%clk 0:00:04]}  Ne5 {[%clk 0:00:14]} 56. Ke3 {[%clk 0:00:04]}  Nd7 {[%clk 0:00:14]} 57. Bd2 {[%clk 0:00:04]}  Nf6 {[%clk 0:00:14]} 58. Kf4 {[%clk 0:00:04]}  Kg7 {[%clk 0:00:15]} 59. Kf5 {[%clk 0:00:04]}  Rf8 {[%clk 0:00:14]} 60. Ke6 {[%clk 0:00:04]}  Ng8 {[%clk 0:00:13]} 61. Bc3+ {[%clk 0:00:03]}  Kh7 {[%clk 0:00:09]} 62. Bc2+ {[%clk 0:00:02]} 1-0


[Site "https://www.chess.com"]

[Event "Titled Tuesday Blitz July 05 Late 2022"]
[White "Reprintsev, Alexander"]
[Black "Rustemov, Alexander"]
[WhiteFideId "14100541"]
[BlackFideId "4119002"]
[WhiteElo "2108"]
[BlackElo "2728"]
[Result "0-1"]
[Round "04"]
[TimeControl "180+1"]
[Date "2022.07.06"]
[WhiteClock "0:00:01"]
[BlackClock "0:00:50"]

1. e4 {[%clk 0:03:00]}  c5 {[%clk 0:02:59]} 2. b3 {[%clk 0:03:00]}  Nc6 {[%clk 0:02:50]} 3. Bb2 {[%clk 0:03:00]}  Nf6 {[%clk 0:02:49]} 4. e5 {[%clk 0:03:00]}  Nd5 {[%clk 0:02:40]} 5. Nf3 {[%clk 0:03:00]}  e6 {[%clk 0:02:39]} 6. g3 {[%clk 0:02:46]}  Nde7 {[%clk 0:02:32]} 7. d4 {[%clk 0:02:42]}  cxd4 {[%clk 0:02:27]} 8. Nxd4 {[%clk 0:02:43]}  Qa5+ {[%clk 0:02:19]} 9. Qd2 {[%clk 0:02:06]}  Qxe5+ {[%clk 0:02:19]} 10. Be2 {[%clk 0:02:03]}  Nf5 {[%clk 0:02:15]} 11. c3 {[%clk 0:01:58]}  d5 {[%clk 0:02:08]} 12. Nxc6 {[%clk 0:01:47]}  bxc6 {[%clk 0:02:09]} 13. c4 {[%clk 0:01:47]}  d4 {[%clk 0:02:01]} 14. O-O {[%clk 0:01:41]}  c5 {[%clk 0:02:01]} 15. Bf3 {[%clk 0:01:40]}  Rb8 {[%clk 0:01:54]} 16. Qa5 {[%clk 0:01:36]}  Be7 {[%clk 0:01:50]} 17. Qxa7 {[%clk 0:01:35]}  O-O {[%clk 0:01:45]} 18. Nd2 {[%clk 0:01:35]}  Bb7 {[%clk 0:01:37]} 19. Bxb7 {[%clk 0:01:25]}  Qc7 {[%clk 0:01:36]} 20. Nf3 {[%clk 0:00:30]}  Rxb7 {[%clk 0:01:36]} 21. Qa6 {[%clk 0:00:30]}  Ra7 {[%clk 0:01:34]} 22. Qb5 {[%clk 0:00:19]}  Rb8 {[%clk 0:01:32]} 23. g4 {[%clk 0:00:14]}  Rxb5 {[%clk 0:01:30]} 24. cxb5 {[%clk 0:00:14]}  Nd6 {[%clk 0:01:27]} 25. a4 {[%clk 0:00:13]}  f6 {[%clk 0:01:19]} 26. Rfc1 {[%clk 0:00:13]}  e5 {[%clk 0:01:17]} 27. b4 {[%clk 0:00:10]}  c4 {[%clk 0:01:17]} 28. Bxd4 {[%clk 0:00:08]}  exd4 {[%clk 0:01:16]} 29. Nxd4 {[%clk 0:00:09]}  Qd7 {[%clk 0:01:14]} 30. b6 {[%clk 0:00:08]}  Qxg4+ {[%clk 0:01:14]} 31. Kf1 {[%clk 0:00:07]}  Rd7 {[%clk 0:01:08]} 32. Nc6 {[%clk 0:00:05]}  Qh3+ {[%clk 0:00:59]} 33. Kg1 {[%clk 0:00:04]}  Qg4+ {[%clk 0:00:56]} 34. Kf1 {[%clk 0:00:04]}  Ne4 {[%clk 0:00:55]} 35. Nxe7+ {[%clk 0:00:02]}  Rxe7 {[%clk 0:00:55]} 36. Rc2 {[%clk 0:00:01]}  Qf3 {[%clk 0:00:50]} 0-1


[Site "https://www.chess.com"]

[Event "Titled Tuesday Blitz July 05 Late 2022"]
[White "Riehle, Marco"]
[Black "He, Anthony"]
[WhiteFideId "12904392"]
[BlackFideId "2088215"]
[WhiteElo "2462"]
[BlackElo "2409"]
[Result "1-0"]
[Round "04"]
[TimeControl "180+1"]
[Date "2022.07.05"]
[WhiteClock "0:00:23"]
[BlackClock "0:00:15"]

1. e4 {[%clk 0:03:00]}  d5 {[%clk 0:02:59]} 2. exd5 {[%clk 0:03:00]}  Qxd5 {[%clk 0:03:00]} 3. Nc3 {[%clk 0:03:00]}  Qd8 {[%clk 0:03:00]} 4. d4 {[%clk 0:03:01]}  Nf6 {[%clk 0:03:01]} 5. Nf3 {[%clk 0:03:01]}  c6 {[%clk 0:03:01]} 6. Bc4 {[%clk 0:03:01]}  Bf5 {[%clk 0:03:02]} 7. Bd2 {[%clk 0:02:58]}  e6 {[%clk 0:03:00]} 8. Qe2 {[%clk 0:02:59]}  Nbd7 {[%clk 0:03:00]} 9. O-O-O {[%clk 0:02:59]}  Be7 {[%clk 0:03:01]} 10. Ne5 {[%clk 0:02:59]}  Nxe5 {[%clk 0:02:55]} 11. dxe5 {[%clk 0:03:00]}  Nd5 {[%clk 0:02:56]} 12. g4 {[%clk 0:02:58]}  Bg6 {[%clk 0:02:56]} 13. Nxd5 {[%clk 0:02:56]}  exd5 {[%clk 0:02:56]} 14. Bd3 {[%clk 0:02:53]}  Qd7 {[%clk 0:02:41]} 15. f4 {[%clk 0:02:47]}  Bxd3 {[%clk 0:02:40]} 16. Qxd3 {[%clk 0:02:44]}  O-O-O {[%clk 0:02:36]} 17. f5 {[%clk 0:02:40]}  Bc5 {[%clk 0:02:32]} 18. Bf4 {[%clk 0:02:31]}  Rhe8 {[%clk 0:02:30]} 19. h4 {[%clk 0:02:29]}  Bb6 {[%clk 0:02:24]} 20. Rde1 {[%clk 0:02:21]}  Bc7 {[%clk 0:02:18]} 21. Bg5 {[%clk 0:02:18]}  Bxe5 {[%clk 0:02:13]} 22. Bxd8 {[%clk 0:02:17]}  Qxd8 {[%clk 0:02:14]} 23. Kb1 {[%clk 0:02:14]}  Kb8 {[%clk 0:02:11]} 24. g5 {[%clk 0:02:04]}  Qd6 {[%clk 0:02:06]} 25. a3 {[%clk 0:01:55]}  a5 {[%clk 0:01:57]} 26. Re2 {[%clk 0:01:46]}  f6 {[%clk 0:01:51]} 27. Rhe1 {[%clk 0:01:44]}  Rc8 {[%clk 0:01:47]} 28. h5 {[%clk 0:01:37]}  c5 {[%clk 0:01:36]} 29. Rd1 {[%clk 0:01:27]}  Rd8 {[%clk 0:01:32]} 30. Qb5 {[%clk 0:01:19]}  fxg5 {[%clk 0:01:30]} 31. Rde1 {[%clk 0:01:16]}  Bf6 {[%clk 0:01:28]} 32. Re8 {[%clk 0:01:10]}  g4 {[%clk 0:01:19]} 33. Qxa5 {[%clk 0:01:03]}  g3 {[%clk 0:01:17]} 34. Rxd8+ {[%clk 0:00:53]}  Bxd8 {[%clk 0:01:18]} 35. Re8 {[%clk 0:00:53]}  Kc8 {[%clk 0:01:06]} 36. Qa8+ {[%clk 0:00:52]}  Kc7 {[%clk 0:01:07]} 37. Qa5+ {[%clk 0:00:52]}  Kc8 {[%clk 0:01:08]} 38. Rg8 {[%clk 0:00:51]}  g2 {[%clk 0:01:03]} 39. Qa8+ {[%clk 0:00:50]}  Kc7 {[%clk 0:01:03]} 40. Rxg7+ {[%clk 0:00:50]}  Be7 {[%clk 0:00:56]} 41. Qa5+ {[%clk 0:00:46]}  Kc6 {[%clk 0:00:51]} 42. Rxg2 {[%clk 0:00:45]}  Qe5 {[%clk 0:00:50]} 43. Qa4+ {[%clk 0:00:34]}  Kb6 {[%clk 0:00:50]} 44. Qb3+ {[%clk 0:00:33]}  Ka7 {[%clk 0:00:51]} 45. Qd3 {[%clk 0:00:23]}  Bf6 {[%clk 0:00:50]} 46. c3 {[%clk 0:00:23]}  Kb6 {[%clk 0:00:41]} 47. Re2 {[%clk 0:00:23]}  c4 {[%clk 0:00:15]} 48. Rxe5 {[%clk 0:00:23]}  cxd3 {[%clk 0:00:15]} 49. Re6+ {[%clk 0:00:23]} 1-0


[Site "https://www.chess.com"]

[Event "Titled Tuesday Blitz July 05 Late 2022"]
[White "Sankalp Gupta"]
[Black "Andreikin, Dmitry"]
[WhiteFideId "5097010"]
[BlackFideId "4158814"]
[WhiteElo "2399"]
[BlackElo "2736"]
[Result "0-1"]
[Round "04"]
[TimeControl "180+1"]
[Date "2022.07.05"]
[WhiteClock "0:00:03"]
[BlackClock "0:01:11"]

1. e4 {[%clk 0:03:00]}  c5 {[%clk 0:02:59]} 2. Nf3 {[%clk 0:03:01]}  e6 {[%clk 0:03:00]} 3. d4 {[%clk 0:03:01]}  cxd4 {[%clk 0:03:01]} 4. Nxd4 {[%clk 0:03:02]}  Nc6 {[%clk 0:03:01]} 5. Nc3 {[%clk 0:03:02]}  a6 {[%clk 0:03:02]} 6. Be3 {[%clk 0:02:55]}  Nf6 {[%clk 0:03:01]} 7. a3 {[%clk 0:02:47]}  Qc7 {[%clk 0:02:56]} 8. Qf3 {[%clk 0:02:23]}  Bd6 {[%clk 0:02:44]} 9. O-O-O {[%clk 0:02:21]}  Be5 {[%clk 0:02:44]} 10. g4 {[%clk 0:02:15]}  h6 {[%clk 0:02:42]} 11. h4 {[%clk 0:02:12]}  h5 {[%clk 0:02:34]} 12. gxh5 {[%clk 0:02:04]}  b5 {[%clk 0:02:34]} 13. h6 {[%clk 0:01:58]}  Rxh6 {[%clk 0:02:24]} 14. Nxc6 {[%clk 0:01:51]}  Qxc6 {[%clk 0:02:24]} 15. Bxh6 {[%clk 0:01:47]}  gxh6 {[%clk 0:02:25]} 16. Rg1 {[%clk 0:01:40]}  Bb7 {[%clk 0:02:19]} 17. Qe3 {[%clk 0:01:22]}  Rc8 {[%clk 0:02:11]} 18. Rd3 {[%clk 0:00:53]}  Qc7 {[%clk 0:01:54]} 19. Kb1 {[%clk 0:00:52]}  Bxe4 {[%clk 0:01:53]} 20. Rg8+ {[%clk 0:00:15]}  Nxg8 {[%clk 0:01:50]} 21. Qxe4 {[%clk 0:00:15]}  d5 {[%clk 0:01:43]} 22. Qh7 {[%clk 0:00:14]}  Ke7 {[%clk 0:01:30]} 23. Rf3 {[%clk 0:00:09]}  Nf6 {[%clk 0:01:28]} 24. Qd3 {[%clk 0:00:08]}  Bxc3 {[%clk 0:01:25]} 25. bxc3 {[%clk 0:00:08]}  Qe5 {[%clk 0:01:26]} 26. Qd4 {[%clk 0:00:04]}  Qxd4 {[%clk 0:01:22]} 27. cxd4 {[%clk 0:00:04]}  Ne4 {[%clk 0:01:22]} 28. Kc1 {[%clk 0:00:05]}  Rg8 {[%clk 0:01:19]} 29. Bd3 {[%clk 0:00:05]}  Rg4 {[%clk 0:01:19]} 30. a4 {[%clk 0:00:04]}  bxa4 {[%clk 0:01:17]} 31. Bxa6 {[%clk 0:00:04]}  Rxh4 {[%clk 0:01:17]} 32. Ra3 {[%clk 0:00:04]}  Nxf2 {[%clk 0:01:13]} 33. Rxa4 {[%clk 0:00:04]}  h5 {[%clk 0:01:13]} 34. Bb7 {[%clk 0:00:03]}  Rf4 {[%clk 0:01:12]} 35. Kd2 {[%clk 0:00:03]}  Ng4 {[%clk 0:01:11]} 36. c3 {[%clk 0:00:04]}  h4 {[%clk 0:01:11]} 37. Ra1 {[%clk 0:00:04]}  h3 {[%clk 0:01:12]} 38. Ba6 {[%clk 0:00:03]}  h2 {[%clk 0:01:12]} 39. Rh1 {[%clk 0:00:03]}  Rf2+ {[%clk 0:01:12]} 40. Be2 {[%clk 0:00:03]}  Rg2 {[%clk 0:01:11]} 41. Ke1 {[%clk 0:00:03]}  Rg1+ {[%clk 0:01:11]} 0-1


[Site "https://www.chess.com"]

[Event "Titled Tuesday Blitz July 05 Late 2022"]
[White "Silva, Kaua Marques"]
[Black "Issani, Nameer"]
[WhiteFideId "22701168"]
[BlackFideId "2619130"]
[WhiteElo "2071"]
[BlackElo "2645"]
[Result "0-1"]
[Round "04"]
[TimeControl "180+1"]
[Date "2022.07.06"]
[WhiteClock "0:00:02"]
[BlackClock "0:00:15"]

1. e4 {[%clk 0:02:59]}  e5 {[%clk 0:02:56]} 2. Nf3 {[%clk 0:02:59]}  Nc6 {[%clk 0:02:56]} 3. Bb5 {[%clk 0:02:57]}  a6 {[%clk 0:02:56]} 4. Ba4 {[%clk 0:02:57]}  Nf6 {[%clk 0:02:55]} 5. O-O {[%clk 0:02:57]}  b5 {[%clk 0:02:56]} 6. Bb3 {[%clk 0:02:57]}  Be7 {[%clk 0:02:56]} 7. Re1 {[%clk 0:02:57]}  O-O {[%clk 0:02:56]} 8. a4 {[%clk 0:02:55]}  Bb7 {[%clk 0:02:47]} 9. c3 {[%clk 0:02:49]}  d6 {[%clk 0:02:33]} 10. d4 {[%clk 0:02:45]}  Re8 {[%clk 0:02:27]} 11. Ng5 {[%clk 0:02:36]}  Rf8 {[%clk 0:02:26]} 12. Nf3 {[%clk 0:02:36]}  h6 {[%clk 0:02:19]} 13. Nbd2 {[%clk 0:02:26]}  Re8 {[%clk 0:02:12]} 14. Nf1 {[%clk 0:02:24]}  Bf8 {[%clk 0:02:10]} 15. Ng3 {[%clk 0:02:24]}  g6 {[%clk 0:02:06]} 16. d5 {[%clk 0:01:49]}  Ne7 {[%clk 0:01:49]} 17. Qd3 {[%clk 0:01:46]}  Qd7 {[%clk 0:01:48]} 18. c4 {[%clk 0:01:27]}  b4 {[%clk 0:01:43]} 19. c5 {[%clk 0:01:10]}  Qd8 {[%clk 0:01:35]} 20. c6 {[%clk 0:00:57]}  Bc8 {[%clk 0:01:35]} 21. a5 {[%clk 0:00:57]}  Nh7 {[%clk 0:01:26]} 22. Ra4 {[%clk 0:00:48]}  Bg7 {[%clk 0:01:19]} 23. Rxb4 {[%clk 0:00:43]}  Rf8 {[%clk 0:01:20]} 24. Nd2 {[%clk 0:00:33]}  f5 {[%clk 0:01:19]} 25. f3 {[%clk 0:00:34]}  f4 {[%clk 0:01:17]} 26. Ngf1 {[%clk 0:00:34]}  g5 {[%clk 0:01:18]} 27. Bd1 {[%clk 0:00:24]}  h5 {[%clk 0:01:15]} 28. Nc4 {[%clk 0:00:23]}  Qe8 {[%clk 0:01:14]} 29. Kf2 {[%clk 0:00:23]}  Qg6 {[%clk 0:01:11]} 30. Ke2 {[%clk 0:00:23]}  g4 {[%clk 0:01:11]} 31. Kd2 {[%clk 0:00:24]}  g3 {[%clk 0:00:22]} 32. hxg3 {[%clk 0:00:19]}  fxg3 {[%clk 0:00:23]} 33. Kc2 {[%clk 0:00:19]}  h4 {[%clk 0:00:23]} 34. Nfe3 {[%clk 0:00:18]}  Ng5 {[%clk 0:00:22]} 35. Kb1 {[%clk 0:00:15]}  h3 {[%clk 0:00:22]} 36. gxh3 {[%clk 0:00:14]}  Nxf3 {[%clk 0:00:22]} 37. Bxf3 {[%clk 0:00:12]}  Rxf3 {[%clk 0:00:23]} 38. Qe2 {[%clk 0:00:12]}  Rf8 {[%clk 0:00:19]} 39. Nd2 {[%clk 0:00:11]}  Bxh3 {[%clk 0:00:18]} 40. Rg1 {[%clk 0:00:11]}  Rf2 {[%clk 0:00:16]} 41. Qd3 {[%clk 0:00:10]}  Raf8 {[%clk 0:00:16]} 42. Nd1 {[%clk 0:00:06]}  Rg2 {[%clk 0:00:12]} 43. Rh1 {[%clk 0:00:05]}  Rh2 {[%clk 0:00:12]} 44. Rxh2 {[%clk 0:00:04]}  gxh2 {[%clk 0:00:12]} 45. Qxh3 {[%clk 0:00:05]}  Qh6 {[%clk 0:00:12]} 46. Qg2 {[%clk 0:00:02]}  h1=Q {[%clk 0:00:12]} 47. Qxh1 {[%clk 0:00:03]}  Qxh1 {[%clk 0:00:13]} 48. Rb7 {[%clk 0:00:03]}  Qxd1 {[%clk 0:00:13]} 49. Rxc7 {[%clk 0:00:02]}  Bh6 {[%clk 0:00:13]} 50. Rxe7 {[%clk 0:00:02]}  Bxd2 {[%clk 0:00:13]} 51. c7 {[%clk 0:00:02]}  Qxc1+ {[%clk 0:00:14]} 52. Ka2 {[%clk 0:00:02]}  Qc4+ {[%clk 0:00:14]} 53. Kb1 {[%clk 0:00:02]}  Qxe4+ {[%clk 0:00:14]} 54. Ka2 {[%clk 0:00:02]}  Qxd5+ {[%clk 0:00:15]} 0-1


[Site "https://www.chess.com"]

[Event "Titled Tuesday Blitz July 05 Late 2022"]
[White "Swiercz, Dariusz"]
[Black "Barp, Alberto"]
[WhiteFideId "1126881"]
[BlackFideId "872555"]
[WhiteElo "2627"]
[BlackElo "2229"]
[Result "1-0"]
[Round "04"]
[TimeControl "180+1"]
[Date "2022.07.05"]
[WhiteClock "0:01:01"]
[BlackClock "0:00:15"]

1. d4 {[%clk 0:02:59]}  d5 {[%clk 0:02:55]} 2. c4 {[%clk 0:02:59]}  e6 {[%clk 0:02:56]} 3. Nf3 {[%clk 0:02:59]}  Nf6 {[%clk 0:02:56]} 4. g3 {[%clk 0:02:59]}  Bb4+ {[%clk 0:02:51]} 5. Bd2 {[%clk 0:02:59]}  Be7 {[%clk 0:02:51]} 6. Bg2 {[%clk 0:02:59]}  O-O {[%clk 0:02:51]} 7. O-O {[%clk 0:03:00]}  Nbd7 {[%clk 0:02:51]} 8. Qc2 {[%clk 0:02:55]}  c6 {[%clk 0:02:48]} 9. a4 {[%clk 0:02:55]}  a5 {[%clk 0:02:43]} 10. Na3 {[%clk 0:02:56]}  b6 {[%clk 0:02:41]} 11. cxd5 {[%clk 0:02:50]}  cxd5 {[%clk 0:02:42]} 12. Nb5 {[%clk 0:02:50]}  Ba6 {[%clk 0:02:31]} 13. Rfc1 {[%clk 0:02:48]}  Rc8 {[%clk 0:02:28]} 14. Qb3 {[%clk 0:02:47]}  Ne4 {[%clk 0:02:21]} 15. Be1 {[%clk 0:02:46]}  Rxc1 {[%clk 0:02:04]} 16. Rxc1 {[%clk 0:02:46]}  Nd6 {[%clk 0:02:00]} 17. Bd2 {[%clk 0:02:35]}  Bxb5 {[%clk 0:01:32]} 18. axb5 {[%clk 0:02:36]}  Nc4 {[%clk 0:01:24]} 19. Be1 {[%clk 0:02:31]}  Qb8 {[%clk 0:01:22]} 20. Nd2 {[%clk 0:02:26]}  Nxd2 {[%clk 0:01:21]} 21. Bxd2 {[%clk 0:02:27]}  Rc8 {[%clk 0:01:21]} 22. Rc6 {[%clk 0:02:22]}  Bd6 {[%clk 0:01:04]} 23. Qc2 {[%clk 0:02:18]}  Rxc6 {[%clk 0:01:00]} 24. bxc6 {[%clk 0:02:12]}  Nf6 {[%clk 0:01:00]} 25. e4 {[%clk 0:01:59]}  dxe4 {[%clk 0:00:59]} 26. Bxe4 {[%clk 0:02:00]}  Nxe4 {[%clk 0:00:59]} 27. Qxe4 {[%clk 0:02:01]}  Qc8 {[%clk 0:00:52]} 28. d5 {[%clk 0:01:59]}  exd5 {[%clk 0:00:29]} 29. Qxd5 {[%clk 0:02:00]}  Qc7 {[%clk 0:00:27]} 30. Be3 {[%clk 0:01:54]}  Be7 {[%clk 0:00:21]} 31. Bf4 {[%clk 0:01:52]}  Qc8 {[%clk 0:00:22]} 32. c7 {[%clk 0:01:37]}  Kf8 {[%clk 0:00:20]} 33. Qc6 {[%clk 0:01:35]}  Bc5 {[%clk 0:00:20]} 34. Bd6+ {[%clk 0:01:28]}  Bxd6 {[%clk 0:00:20]} 35. Qxd6+ {[%clk 0:01:29]}  Ke8 {[%clk 0:00:21]} 36. Qc6+ {[%clk 0:01:20]}  Ke7 {[%clk 0:00:20]} 37. Qxb6 {[%clk 0:01:21]}  a4 {[%clk 0:00:20]} 38. Qc6 {[%clk 0:01:20]}  g6 {[%clk 0:00:18]} 39. h4 {[%clk 0:01:19]}  h5 {[%clk 0:00:18]} 40. Kg2 {[%clk 0:01:16]}  Kf8 {[%clk 0:00:19]} 41. Kf1 {[%clk 0:01:12]}  Ke7 {[%clk 0:00:18]} 42. Ke1 {[%clk 0:01:10]}  Kf8 {[%clk 0:00:15]} 43. Kd2 {[%clk 0:01:06]}  Ke7 {[%clk 0:00:15]} 44. Kc3 {[%clk 0:01:05]}  Kf8 {[%clk 0:00:15]} 45. Qd6+ {[%clk 0:01:00]}  Ke8 {[%clk 0:00:15]} 46. Qd8+ {[%clk 0:00:59]}  Qxd8 {[%clk 0:00:14]} 47. cxd8=Q+ {[%clk 0:01:00]}  Kxd8 {[%clk 0:00:15]} 48. Kb4 {[%clk 0:01:01]} 1-0


[Site "https://www.chess.com"]